Workbook

Sheet Information Sheet
A3: . . . . . . . . . . . . . . . . . . . . . . . . . . . . . . . . . . . . . . . . . . . .
A5: Guidelines for Estimating
A6: Grain Drying Cost Calculator
A7: Based on Batch or Continuous Flow Dryers
A12: Name of Farmer:
A13: Mailing Address:
A14: Phone Number:
A15: Municipality :
A16: Date Completed:
A17: Prepared By:
A18: Phone Number:
A21: Note: This budget is only a guide and is not intended to be an in-depth study of grain drying. Interpretation and utilization of this information is the responsibility of the user. If you need help with a budget, contact your local Manitoba Agriculture office. No liability for decisions based on this publication is assumed.

Sheet Input Data
A1: Crop Drying Cost Report - Input Data
A3: Dryer Type
B4: 1 | C4: Batch
B5: 2 | C5: Continuous Flow
D6: (1 or 2)... | F6: 2
A8: Grain Type
B9: 1 | C9: Wheat
B10: 2 | C10: Barley
B11: 3 | C11: Canola
B12: 4 | C12: Corn
B13: 5 | C13: Sunflowers
D14: (1 to 5)… | F14: 4
A16: Estimated Market Price per Tonne of Crop | F16: 175 | G16: /tonne
A17: Outside Air Temp (Celsius), (at time of drying) | F17: 0 | G17: deg. Celsius
A18: Temp. of Drying Air (deg. C) | F18: 100 | G18: deg. Celsius
A19: Initial Moisture Content of Grain (%) | F19: 22 | G19: %
A20: Final Moisture Content of Grain (%) | F20: 15.4 | G20: %
A22: Batch Dryers Only
A23: Holding Capacity of Dryer | B23: 1 | C23: Cubic Metres
B24: 2 | C24: Bushels
D25: (1 or 2)... | F25: 2
D26: Capacity | F26: 250 | G26: =IF(F25=1,"m3","bu") -> bu
B27: Capacity in Cubic Metres | F27: =IF(F6=2,"Continuous Flow",IF(F25=1,F26,IF(F25=2,F26*0.035,0))) -> Continuous Flow | G27: m3
B28: Hours to Dry a Batch | F28: 1.5 | G28: hrs
A30: Continuous Flow Dryers Only
A31: Approx. Drying Rate | B31: 1 | C31: Tonnes/Hour
B32: 2 | C32: Bushels/Hour
D33: (1 or 2)... | F33: 2
D34: Drying Rate | F34: 200 | G34: =IF(F33=1,"t/hr","bu/hr") -> bu/hr
B35: Drying Rate in Tonnes per Hour | F35: =IF(F6=1,"Batch Chosen ",IF(F33=1,F34,IF(F33=2,F34*VLOOKUP(F14,Coefficients!B5:C10,2),0))) -> 5.08 | G35: t/hr
A37: All Dryers
A38: Electrical Energy Cost ($/kWh) | F38: 0 | G38: /kwh
F39: =IF(F38=0,0.08527,F38) -> 0.08527 | G39: /kwh
A40: Cost of Propane ($/L) | F40: 0 | G40: /litre
F41: =IF(F40=0,0.52,F40) -> 0.52 | G41: /litre
A42: Total Power of Electric Motors on Dryer (HP) | F42: 15 | G42: HP
A43: Tractor Size Required to Drive Dryer (HP) | F43: 0 | G43: HP
A44: Labour Charge per Hour | F44: 22 | G44: /hr
A45: Estimated Hours of Use per Year | F45: 150 | G45: hrs
A46: Cost of Grain Dryer | F46: 30000
A47: Cost of Auxiliary Equipment (augers, foundations, electrical service, etc.) | F47: 7500
A48: Cost of Surge Bins | F48: 12000
A49: Depreciation rate on dryer | F49: 10 | G49: %
A50: Depreciation rate on surge bins | F50: 5 | G50: %
A51: Investment Rate (%) | F51: 2.75 | G51: %
C54: =IF(F25=1,"metric","imperial") -> imperial | D54: =IF(F33=1,"metric","imperial") -> imperial | F54: =IF(C54=D54,"Metric","imperial") -> Metric

Sheet Crop Drying Cost Report
A1: Crop Drying Cost Report
C3: DRYER TYPE: | D3: =IF('Input Data'!F6=0,(" "),VLOOKUP('Input Data'!F6,Coefficients!B28:C29,2)) -> Continuous Flow
C5: GRAIN TYPE: | D5: =IF('Input Data'!F14=0,(" "),VLOOKUP('Input Data'!F14,Coefficients!F21:G26,2)) -> Corn
C6: Initial Moisture Content: | D6: =('Input Data'!F19)/100 -> 0.22
C7: Final Moisture Content: | D7: ='Input Data'!F20/100 -> 0.154
C9: DRYING RATE: | D9: =IF('Input Data'!F6=1,'Input Data'!F27*VLOOKUP('Input Data'!F14,Coefficients!F13:G17,2)/'Input Data'!F28,IF('Input Data'!F6=2,'Input Data'!F35,0)) -> 5.08 | E9: =IF('Input Data'!F54="metric","Tonne/Hour","Bushels/Hour") -> Tonne/Hour
C10: Drying Temp.: | D10: ='Input Data'!F18 -> 100
C11: Ambient Temp.: | D11: ='Input Data'!F17 -> 0
A15: OPERATING COSTS | D15: Cost/Hour | E15: Cost/Bushel | F15: Cost/Tonne
A16: Repair Costs | D16: =('Input Data'!F46+'Input Data'!F47)*0.00015 -> 5.625 | E16: =IF(D16=0,0,F16*VLOOKUP('Input Data'!F14,Coefficients!B32:C37,2)) -> 0.02812648508 | F16: =IF(D16=0,0,D16/IF('Input Data'!F6=1,'Input Data'!F27*VLOOKUP('Input Data'!F14,Coefficients!F13:G17,2)/'Input Data'!F28,IF('Input Data'!F6=2,'Input Data'!F35,0))) -> 1.107283465
A17: Labour | D17: ='Input Data'!F44 -> 22 | E17: =IF(D17=0,0,F17*VLOOKUP('Input Data'!F14,Coefficients!B32:C37,2)) -> 0.1100058083 | F17: =IF(D17=0,0,D17/IF('Input Data'!F6=1,'Input Data'!F27*VLOOKUP('Input Data'!F14,Coefficients!F13:G17,2)/'Input Data'!F28,IF('Input Data'!F6=2,'Input Data'!F35,0))) -> 4.330708661
A18: Power Costs | D18: ='Input Data'!F39*'Input Data'!F42+'Input Data'!F43*0.4286 -> 1.27905 | E18: =IF(D18=0,0,F18*VLOOKUP('Input Data'!F14,Coefficients!B32:C37,2)) -> 0.006395587687 | F18: =IF(D18=0,0,D18/IF('Input Data'!F6=1,'Input Data'!F27*VLOOKUP('Input Data'!F14,Coefficients!F13:G17,2)/'Input Data'!F28,IF('Input Data'!F6=2,'Input Data'!F35,0))) -> 0.2517814961
A19: Propane Cost | D19: =IF('Input Data'!F6=1,'Input Data'!F41*VLOOKUP('Input Data'!F14,Coefficients!F5:G10,2)*'Input Data'!F27*VLOOKUP('Input Data'!F14,Coefficients!F13:G17,2)/'Input Data'!F28,IF('Input Data'!F6=2,'Input Data'!F41*VLOOKUP('Input Data'!F14,Coefficients!F5:G10,2)*'Input Data'!F35,0)) -> 47.33548903 | E19: =IF(D19=0,0,F19*VLOOKUP('Input Data'!F14,Coefficients!B32:C37,2)) -> 0.2366899424 | F19: =IF(D19=0,0,D19/IF('Input Data'!F6=1,'Input Data'!F27*VLOOKUP('Input Data'!F14,Coefficients!F13:G17,2)/'Input Data'!F28,IF('Input Data'!F6=2,'Input Data'!F35,0))) -> 9.318009651
A20: TOTAL OPERATING COSTS | D20: =SUM(D16:D19) -> 76.23953903 | E20: =SUM(E16:E19) -> 0.3812178234 | F20: =SUM(F16:F19) -> 15.00778327
A22: FIXED COSTS
A23: Depreciation | D23: =IF('Input Data'!F45=0,0,(('Input Data'!F46+'Input Data'!F47)*'Input Data'!F49/100+'Input Data'!F48*'Input Data'!F50/100)/'Input Data'!F45) -> 29 | E23: =IF(D23=0,0,F23*VLOOKUP('Input Data'!F14,Coefficients!B32:C36,2)) -> 0.1450076564 | F23: =IF(D23=0,0,D23/IF('Input Data'!F6=1,'Input Data'!F27*VLOOKUP('Input Data'!F14,Coefficients!F13:G17,2)/'Input Data'!F28,IF('Input Data'!F6=2,'Input Data'!F35,0))) -> 5.708661417
A24: Investment Cost | D24: =IF('Input Data'!F45=0,0,(0.6*('Input Data'!F46+'Input Data'!F47+'Input Data'!F48))*'Input Data'!F51/100/'Input Data'!F45) -> 5.445 | E24: =IF(D24=0,0,F24*VLOOKUP('Input Data'!F14,Coefficients!B32:C36,2)) -> 0.02722643756 | F24: =IF(D24=0,0,D24/IF('Input Data'!F6=1,'Input Data'!F27*VLOOKUP('Input Data'!F14,Coefficients!F13:G17,2)/'Input Data'!F28,IF('Input Data'!F6=2,'Input Data'!F35,0))) -> 1.071850394
A25: TOTAL FIXED COSTS | D25: =SUM(D23:D24) -> 34.445 | E25: =SUM(E23:E24) -> 0.172234094 | F25: =SUM(F23:F24) -> 6.780511811
A27: TOTAL COSTS | D27: =D20+D25 -> 110.684539 | E27: =E20+E25 -> 0.5534519174 | F27: =F20+F25 -> 21.78829508
A29: Total Overdrying Cost | E29: =IF(D27=0,0,F29*VLOOKUP('Input Data'!F14,Coefficients!B32:C36,2)) -> 0.00533428165 | F29: =IF('Input Data'!F14=0,(" "),(VLOOKUP('Input Data'!F14,Coefficients!H21:I25,2)-'Input Data'!F20)*1.2*'Input Data'!F16/100) -> 0.21
A31: Note: This budget is only a guide and is not intended to be an in-depth study of grain drying. Interpretation and utilization of this information is the responsibility of the user. If you need help with a budget, contact your local Manitoba Agriculture office. No liability for decisions based on this publication is assumed.

Sheet Assumptions
A1: Crop Drying Cost Report - Assumptions
B4: ASSUMPTIONS:
B6: 1 | C6: Fuel consumptions based on PAMI test reports and CSAE paper 84-211 "Heated Air Grain Dryer Performance".
B8: 2 | C8: ="Default value for electrical cost = $"&'Input Data'!F39&"/kWh which is the present runoff rate." -> Default value for electrical cost = $0.08527/kWh which is the present runoff rate.
B10: 3 | C10: ="Default value for propane cost = $"&'Input Data'!F41&"/Litre." -> Default value for propane cost = $0.52/Litre.
B12: 4 | C12: Hourly repair rate is 1.5% of new cost per 100 hours of use.
B14: 5 | C14: Tractor cost used is $0.4286/HPh) which includes fuel but no markup.
B16: 6 | C16: ="Depreciation Rate used - "&'Input Data'!F49&"% on dryer" -> Depreciation Rate used - 10% on dryer
D17: - | E17: ='Input Data'!F50&"% on surge bins." -> 5% on surge bins.
B19: 7 | C19: Investment Cost includes 20% salvage value.
C21: Note: Fuel consumptions on individual dryers may vary as much as 25% from the averages used in this program. See individual PAMI test reports for comparisons between dryers.

Sheet Coefficients
A1: Crop Drying Cost Report - Coefficients
B4: Drying Rate | D4: Basic Fuel Consumption | F4: FUEL CONSUMPTION
B5: 1 | C5: 0.0272 | D5: 1 | E5: =IF('Input Data'!F6=1,('Input Data'!F18-'Input Data'!F17)/('Input Data'!F18-10)*355/('Input Data'!F18+273)*11.4,('Input Data'!F18-'Input Data'!F17)/('Input Data'!F18-10)*363/('Input Data'!F18+273)*10.5) -> 11.3538874 | F5: 1 | G5: =IF('Input Data'!F19>=19.5,E5+0.19*E5*('Input Data'!F19-19.5)+0.2*E5*(14.5-'Input Data'!F20),E5+0.16*E5*('Input Data'!F19-19.5)+0.2*E5*(14.5-'Input Data'!F20)) -> 14.70328418
B6: 2 | C6: 0.0218 | D6: 2 | E6: =IF('Input Data'!F6=1,('Input Data'!F18-'Input Data'!F17)/('Input Data'!F18-10)*363/('Input Data'!F18+273)*11.3,('Input Data'!F18-'Input Data'!F17)/('Input Data'!F18-10)*353/('Input Data'!F18+273)*10.8) -> 11.35656836 | F6: 2 | G6: =IF('Input Data'!F19>=19.8,E6+0.19*E6*('Input Data'!F19-19.8)+0.2*E6*(14.8-'Input Data'!F20),E6+0.16*E6*('Input Data'!F19-19.8)+0.2*E6*(14.8-'Input Data'!F20)) -> 14.74082574
B7: 3 | C7: 0.0227 | D7: 3 | E7: =IF('Input Data'!F6=1,('Input Data'!F18-'Input Data'!F17)/('Input Data'!F18-10)*345/('Input Data'!F18+273)*10.2,('Input Data'!F18-'Input Data'!F17)/('Input Data'!F18-10)*335/('Input Data'!F18+273)*9) -> 8.981233244 | F7: 3 | G7: =IF('Input Data'!F19>=15,E7+0.19*E7*('Input Data'!F19-15)+0.2*E7*(10-'Input Data'!F20),E7+0.16*E7*('Input Data'!F19-15)+0.2*E7*(10-'Input Data'!F20)) -> 11.22654155
B8: 4 | C8: 0.0254 | D8: 4 | E8: =IF('Input Data'!F6=1,('Input Data'!F18-'Input Data'!F17)/('Input Data'!F18-10)*385/('Input Data'!F18+273)*22,('Input Data'!F18-'Input Data'!F17)/('Input Data'!F18-10)*378/('Input Data'!F18+273)*21.8) -> 24.54691689 | F8: 4 | G8: =IF('Input Data'!F19>=25.5,E8+0.095*E8*('Input Data'!F19-25.5)+0.1*E8*(15.5-'Input Data'!F20),E8+0.08*E8*('Input Data'!F19-25.5)+0.1*E8*(15.5-'Input Data'!F20)) -> 17.91924933
B9: 5 | C9: 0.0102 | D9: 5 | E9: =('Input Data'!F18-'Input Data'!F17)/('Input Data'!F18-10)*353/('Input Data'!F18+273)*('Input Data'!F19-'Input Data'!F20)*2.3 -> 15.96228776 | F9: 5 | G9: =E9 -> 15.96228776
B10: 6 | D10: 6 | F10: 6
B12: Initial M.C. Range
B13: 1 | C13: =("17 % ") -> 17 % | D13: 1 | E13: =("- 25 %") -> - 25 % | F13: 1 | G13: 0.77
B14: 2 | C14: =("17 % ") -> 17 % | D14: 2 | E14: =("- 25 %") -> - 25 % | F14: 2 | G14: 0.62
B15: 3 | C15: =("12 % ") -> 12 % | D15: 3 | E15: =("- 20 %") -> - 20 % | F15: 3 | G15: 0.64
B16: 4 | C16: =("18 % ") -> 18 % | D16: 4 | E16: =("- 32 %") -> - 32 % | F16: 4 | G16: 0.7
B17: 5 | C17: =("12 % ") -> 12 % | D17: 5 | E17: =("- 20 %") -> - 20 % | F17: 5 | G17: 0.29
B18: 6 | D18: 6 | F18: 6
B20: Final M.C. Range
B21: 1 | C21: =("13 % ") -> 13 % | D21: 1 | E21: =("- 14.5 %") -> - 14.5 % | F21: 1 | G21: =("Wheat") -> Wheat | H21: 1 | I21: 14.5
B22: 2 | C22: =("13.3 % ") -> 13.3 % | D22: 2 | E22: =("- 14.8 %") -> - 14.8 % | F22: 2 | G22: =("Barley") -> Barley | H22: 2 | I22: 14.8
B23: 3 | C23: =("8.5 % ") -> 8.5 % | D23: 3 | E23: =("- 10 %") -> - 10 % | F23: 3 | G23: =("Canola") -> Canola | H23: 3 | I23: 10
B24: 4 | C24: =("14 % ") -> 14 % | D24: 4 | E24: =("- 15.5 %") -> - 15.5 % | F24: 4 | G24: =("Corn") -> Corn | H24: 4 | I24: 15.5
B25: 5 | C25: =("8 % ") -> 8 % | D25: 5 | E25: =("- 9.5 %") -> - 9.5 % | F25: 5 | G25: =("Sunflower") -> Sunflower | H25: 5 | I25: 9.5
B26: 6 | D26: 6 | F26: 6 | G26: Flax | H26: 6
B28: 1 | C28: =("Batch") -> Batch
B29: 2 | C29: =("Continuous Flow") -> Continuous Flow
B32: 1 | C32: =1/36.743 -> 0.02721606837
B33: 2 | C33: =1/45.929 -> 0.02177273618
B34: 3 | C34: =1/44.092 -> 0.02267985122
B35: 4 | C35: =1/39.368 -> 0.02540134119
B36: 5 | C36: =1/73.487 -> 0.01360784901
B37: 6
